[Event "US Masters 2022"]
[Site "Charlotte"]
[Date "2022.11.24"]
[Round "2.9"]
[White "Mandizha, Farai"]
[Black "Ramirez, Alejandro"]
[Result "0-1"]
[ECO "A57"]
[WhiteElo "2359"]
[BlackElo "2561"]
[Annotator "TA"]
[PlyCount "113"]
[EventDate "2022.11.23"]
[EventType "swiss"]
[EventCountry "USA"]
[SourceTitle "playchess.com"]
[Source "ChessBase"]
[SourceQuality "1"]
[TimeControl "5400+30"]

{[%evp 15,113,29,29,52,49,49,38,22,54,13,83,37,31,19,23,16,19,-12,-19,-22,-18,-22,-17,-25,-24,-37,-33,-69,-38,-61,-52,-52,-62,-63,-67,-103,-112,-119,-128,-181,-170,-181,-185,-177,-94,-92,-85,-118,-105,-250,-252,-241,-249,-251,-236,-327,-345,-326,-220,-261,-219,-462,-448,-485,-422,-608,-627,-625,-580,-481,-479,-973,-863,-1704,-1670,-1816,-2022,-1757,-1712,-29983,-29970,-29971,-29972,-29957,-29954,-6723,-6087,-29988,-29989,-29989,-29990,-29990,-29991,-29991,-29991,-29991,-29992,-29992,-29993,-29993]} 1. d4 {[%emt 0:10:19]} Nf6 {[%emt 0:00:21]} 2. c4 {[%emt 0:00:25]} c5 {[%emt 0:00:57]} 3. d5 {[%emt 0:00:33]} b5 {[%emt 0:00:02]} 4. cxb5 {[%emt 0:00:07]} a6 {[%emt 0:00:02]} 5. e3 {[%emt 0:00:42]} axb5 {[%emt 0:00:36]} 6. Bxb5 {[%emt 0:00:08]} Qa5+ {[%emt 0:00:02]} 7. Nc3 {[%emt 0:00:40]} Bb7 {[%emt 0:00:02]} 8. Bd2 {[%emt 0:00:25] 8.Bd2 scores better than 8.Nge2.} Qb6 {[%emt 0:00:57]} 9. a4 {[%emt 0:00:21] Hoping for e4. A57: Benko/Volga Gambit.} Nxd5 {[%emt 0:01:17]} 10. Nf3 {[%emt 0:06:04]} e6 {[%emt 0:00:17]} 11. O-O {[%emt 0:00:44] White is slightly better.} Be7 {[%emt 0:02:50]} 12. Ne5 {[%emt 0:10:29]} (12. e4 $5 {[%cal Re4d5]} Nb4 13. Bf4 $14) 12... Qc7 {[%emt 0:08:28] [#] Prevents e4.} (12... Nf6 $11 {remains equal.}) 13. Nxd5 {[%emt 0:09:36]} ({White should try} 13. e4 $1 $16) 13... Bxd5 $14 {[%emt 0:04:41]} 14. Bc3 {[%emt 0:00:24][%cal Oe3e4]} Bf6 {[%emt 0:03:09] Against e4} 15. f4 {[%emt 0:00:15]} O-O {[%emt 0:01:36] [#]} 16. Bd3 $146 {[%emt 0:07:32]} ({Predecessor:} 16. Qe2 Be4 17. Nc4 Bxc3 18. bxc3 {½-½ (18) Golod,V (2576)-Avrukh,B (2641) Biel 2006}) 16... d6 $1 {[%emt 0:08:45]} 17. e4 {[%emt 0:01:28]} (17. Qh5 $2 g6 18. Nxg6 fxg6 $19) 17... Bb7 {[%emt 0:05:08]} 18. Nc4 {[%emt 0:06:44][%cal Be5c4,Bc4d2,Bd2e4,Be4g5][%mdl 32]} Bxc3 {[%emt 0:00:50]} 19. bxc3 {[%emt 0:00:02]} Nd7 {[%emt 0:00:08]} 20. Qe1 {[%emt 0:11:03]} d5 {[%emt 0:12:11]} 21. Nd2 {[%emt 0:06:46]} dxe4 {[%emt 0:09:42] Black is more active.} (21... c4 {simplifies} 22. Bc2 Nc5 23. Qe3 dxe4 24. Nxe4 Bxe4 25. Bxe4 Rxa4 26. Rxa4 Nxa4 27. f5 exf5 28. Bxf5 Rd8) 22. Nxe4 {[%emt 0:00:31]} c4 {[%emt 0:00:33]} 23. Bc2 {[%emt 0:00:08]} Ra5 {[%emt 0:03:13]} 24. Rb1 {[%emt 0:11:24]} g6 {[%emt 0:06:50]} 25. Ng5 {[%emt 0:02:59]} Nf6 {[%emt 0:01:28]} (25... Qc6 26. Nf3 $15) (25... Nc5 {simplifies} 26. Qe3 Nd3 27. Nf3 Bxf3 28. Rxf3 Rd8) 26. Qh4 {[%emt 0:00:38]} Kg7 {[%emt 0:00:29]} (26... Qc6 $6 27. Nf3 Qc5+ 28. Kh1 Bxf3 29. Rxf3 $15) 27. Rfe1 {[%emt 0:10:19]} (27. Qf2 $17) 27... h6 $19 {[%emt 0:01:33]} (27... Qc6 28. Qf2 $11 (28. Ne4 Nxe4 29. Bxe4 Qc5+ 30. Qf2 Qxf2+ 31. Kxf2 Bxe4 $15)) 28. Nxe6+ {[%emt 0:01:26]} fxe6 {[%emt 0:00:05]} 29. Qg3 {[%emt 0:00:29]} Kf7 {[%emt 0:03:25]} (29... Kh8 $19 {White must now prevent ...Bd5.} 30. Rxe6 Bc8) 30. Bxg6+ $17 {[%emt 0:00:47]} Ke7 {[%emt 0:00:11][%cal Bf7e7,Be7d6,Bd6c7,Bc7b6][%mdl 32] Strongly threatening ...Bd5.} 31. f5 {[%emt 0:00:28] [#]} e5 $1 {[%emt 0:00:30]} 32. Rb5 {[%emt 0:01:33] White does not recover from this.} (32. Qf4 $17) 32... Rxb5 $19 {[%emt 0:00:14]} (32... Rxa4 33. Qf4 (33. Rbxe5+ Kd8 $15) (33. Qxe5+ Qxe5 34. Rexe5+ Kd8 $17) 33... Kd8 34. Qxh6 $11) 33. axb5 {[%emt 0:00:01]} Qc5+ {[%emt 0:00:40]} 34. Kh1 {[%emt 0:00:08]} Kd6 {[%emt 0:00:20][%cal Of6e4] aiming for ...Ne4!} (34... Qxb5 $2 35. Rxe5+ $18) 35. Qh4 {[%emt 0:00:33] Against Ne4} Kc7 {[%emt 0:02:06]} (35... Qxb5 36. Qxh6 Rg8 37. Qh4 $19) (35... Qd5 $2 36. Rg1) 36. h3 {[%emt 0:00:30]} Qd5 {[%emt 0:03:07][%csl Gb7][%cal Rd5g2]} 37. Re2 {[%emt 0:01:33]} Kb6 {[%emt 0:08:24] ...Qd1+ is the strong threat.} (37... Qxb5 $2 38. Qxh6 Rd8 39. Kh2 $19) 38. Kh2 $2 {[%emt 0:00:09]} (38. Qf2+ {was worth a try.} Qc5 39. Qh4) 38... e4 {[%emt 0:02:49]} (38... Kxb5 39. Qxh6 Qd6 40. Rb2+ Kc6 41. Qe3 $15) 39. Qxh6 {[%emt 0:00:32]} Qe5+ {[%emt 0:00:01]} 40. Kg1 {[%emt 0:00:25]} (40. Kh1 $142 Rd8 41. Qe3+ Qc5 42. Kg1) 40... Rd8 {[%emt 0:00:29]} 41. Qe3+ {[%emt 0:00:45]} Kc7 {[%emt 0:00:04]} (41... Kxb5 {leads to mate.} 42. Rb2+ Kc6 43. Qb6+ Kd7 44. Qxb7+ Qc7 45. Rd2+ Ke7 46. Qxc7+ Rd7 47. Qe5+ Kd8 48. Qxf6+) 42. b6+ {[%emt 0:00:25]} Kb8 {[%emt 0:00:04] And now ...Rd3 would win.} 43. Rd2 {[%emt 0:00:56]} (43. Re1 $142 Rd3 44. Qh6) 43... Rd3 {[%emt 0:02:04]} 44. Rxd3 {[%emt 0:00:07]} cxd3 {[%emt 0:00:01]} 45. c4 {[%emt 0:00:15]} Bc6 {[%emt 0:01:18]} 46. Bf7 {[%emt 0:00:23]} Kb7 {[%emt 0:02:05]} (46... Qxf5 47. Qg3+ Ka8 48. Qd6 $11) 47. g4 {[%emt 0:01:08]} Qb2 {[%emt 0:01:11]} 48. Kf1 {[%emt 0:00:13]} Qh2 {[%emt 0:01:59]} 49. Ke1 {[%emt 0:00:23]} Nd7 {[%emt 0:01:02]} 50. Be8 {[%emt 0:00:40]} Qh1+ {[%emt 0:01:03]} ({Inferior is} 50... Nxb6 51. Bxc6+ Kxc6 52. Qxe4+ Kc5 53. Qxd3 $11 (53. Qe3+ Kxc4 54. Kf1 Qh1+ 55. Kf2 Nd5 $19)) 51. Kd2 {[%emt 0:00:03]} Qg2+ {[%emt 0:00:11] Black mates.} 52. Ke1 {[%emt 0:00:46]} Ne5 {[%emt 0:00:17]} 53. Bxc6+ {[%emt 0:00:49]} Kxc6 {[%emt 0:00:01]} 54. Qh6+ {[%emt 0:00:39]} Kc5 {[%emt 0:00:15][%csl Gd3][%cal Rg2e2]} 55. Qe3+ {[%emt 0:00:35]} Kxc4 {[%emt 0:00:29]} 56. Kd1 {[%emt 0:00:31]} Qc2+ {[%emt 0:00:13]} 57. Ke1 {[%emt 0:00:01] Weighted Error Value: White=0.76/Black=0.08 (flawless)} 0-1

[Event "US Masters 2022"]
[Site "Charlotte"]
[Date "2022.11.24"]
[Round "2.10"]
[White "Cordova, Emilio"]
[Black "Garcia Molla, Victor"]
[Result "1/2-1/2"]
[ECO "E60"]
[WhiteElo "2561"]
[BlackElo "2407"]
[Annotator "TA"]
[PlyCount "33"]
[EventDate "2022.11.23"]
[EventType "swiss"]
[EventCountry "USA"]
[SourceTitle "playchess.com"]
[Source "ChessBase"]
[SourceQuality "1"]
[TimeControl "5400+30"]

{[%evp 10,33,23,12,13,23,34,48,43,51,54,1,6,-13,-15,-13,-13,-15,-10,-15,-10,-20,-14,-25,-27,-34]} 1. Nf3 {[%emt 0:01:21]} Nf6 {[%emt 0:00:16]} 2. c4 {[%emt 0:00:55]} g6 {[%emt 0:00:11]} 3. g3 {[%emt 0:00:17]} Bg7 {[%emt 0:00:13]} 4. Bg2 {[%emt 0:00:06]} O-O {[%emt 0:00:19]} 5. O-O {[%emt 0:00:07]} d6 {[%emt 0:00:21]} 6. d4 {[%emt 0:00:16]} Ne4 {[%emt 0:01:07] E60: King's Indian: Unusual lines and Fianchetto Variation without Nc3.} 7. Be3 {[%emt 0:10:40]} f5 {[%emt 0:03:18]} 8. Nbd2 {[%emt 0:07:45] [#]} Nxd2 $146 {[%emt 0:03:34] White is slightly better.} ({Predecessor:} 8... Nf6 9. Qb3 a5 10. c5+ e6 11. cxd6 cxd6 12. Rac1 a4 13. Qa3 Ra6 14. Rc2 Bd7 {½-½ (73) Altrichter,U (2446)-Shablinsky,M (2414) ICCF email 2012}) 9. Qxd2 {[%emt 0:00:28]} e5 {[%emt 0:04:43]} 10. dxe5 {[%emt 0:07:30]} (10. Ng5 $14) 10... dxe5 $11 {[%emt 0:00:09]} 11. Bc5 {[%emt 0:00:12]} Qxd2 {[%emt 0:05:02]} 12. Nxd2 {[%emt 0:00:06]} Re8 {[%emt 0:14:15]} 13. Bd5+ {[%emt 0:01:12]} Kh8 {[%emt 0:01:38]} 14. Rad1 {[%emt 0:06:29]} Bf6 {[%emt 0:01:42]} 15. Ba3 {[%emt 0:13:31]} Kg7 {[%emt 0:07:12]} 16. c5 {[%emt 0:00:30]} Nc6 {[%emt 0:05:36]} 17. Nc4 {[%emt 0:47:35] Weighted Error Value: White=0.15 (very precise) /Black=0.02 (flawless)} 1/2-1/2

[Event "US Masters 2022"]
[Site "Charlotte"]
[Date "2022.11.24"]
[Round "2.11"]
[White "Jacobson, Aaron"]
[Black "Cruz, Cristhian"]
[Result "0-1"]
[ECO "D37"]
[WhiteElo "2351"]
[BlackElo "2552"]
[Annotator "TA"]
[PlyCount "124"]
[EventDate "2022.11.23"]
[EventType "swiss"]
[EventCountry "USA"]
[SourceTitle "playchess.com"]
[Source "ChessBase"]
[SourceQuality "1"]
[TimeControl "5400+30"]

{[%evp 9,124,28,25,23,32,18,17,22,27,19,18,8,12,11,26,0,0,0,0,0,13,0,0,0,0,0,0,0,0,-18,0,0,11,20,26,36,30,-44,-13,-52,-35,-176,-181,-169,-137,-157,-164,-159,-164,-152,-163,-153,-128,-163,-152,-287,-291,-284,-290,-280,-289,-339,-345,-340,-350,-323,-244,-281,-280,-280,-271,-393,-407,-427,-401,-514,-554,-528,-524,-423,-418,-1064,-560,-558,-533,-29944,-29945,-12365,-5720,-8578,-6167,-4827,-4134,-2150,-1689,-29979,-29980,-29978,-29978,-29983,-29984,-29985,-29986,-29987,-29988,-29983,-2470,-29982,-29983,-29983,-29984,-29982,-29983,-29987,-29988,-29988,-29989]} 1. c4 {[%emt 0:08:44]} e6 {[%emt 0:02:28]} 2. Nf3 {[%emt 0:01:02]} d5 {[%emt 0:01:00]} 3. d4 {[%emt 0:00:08]} a6 {[%emt 0:01:54]} 4. cxd5 {[%emt 0:08:03]} exd5 {[%emt 0:00:10]} 5. Nc3 {[%emt 0:00:02]} Nf6 {[%emt 0:02:36]} 6. Bg5 {[%emt 0:00:16] D37: Queen's Gambit Declined: 5 Bf4.} Be6 {[%emt 0:03:35]} 7. Bxf6 {[%emt 0:00:18]} Qxf6 {[%emt 0:00:23]} 8. Qb3 {[%emt 0:00:06] The position is equal.} Ra7 {[%emt 0:01:48]} 9. g3 {[%emt 0:01:27]} Qd8 {[%emt 0:03:39]} 10. h4 {[%emt 0:01:33]} c6 {[%emt 0:02:22]} 11. Ng5 {[%emt 0:00:16]} Bc8 {[%emt 0:01:38]} 12. e4 {[%emt 0:00:25][%cal Re4d5]} h6 {[%emt 0:02:35]} 13. Nf3 {[%emt 0:00:07][%cal Re4d5]} dxe4 {[%emt 0:03:00] [#]} 14. Nxe4 $146 {[%emt 0:00:14]} ({Predecessor:} 14. Ne5 Be6 15. Bc4 Bxc4 16. Nxc4 Be7 17. O-O-O O-O 18. Nxe4 Qc7 19. Kb1 Nd7 20. g4 {½-½ (53) Suvorov,A (2371)-Arndt,M (2359) Kiel 2022}) 14... Qa5+ {[%emt 0:03:58]} 15. Kd1 {[%emt 0:03:45]} Be6 {[%emt 0:07:52]} 16. Bc4 {[%emt 0:00:18]} Bxc4 {[%emt 0:00:32]} 17. Qxc4 {[%emt 0:00:07] Hoping for Re1.} Be7 {[%emt 0:00:24]} 18. Ne5 {[%emt 0:19:46]} O-O {[%emt 0:04:11]} 19. Kc2 {[%emt 0:01:27]} b5 {[%emt 0:27:10]} (19... Nd7 $5) 20. Qc3 {[%emt 0:08:37]} Qd8 {[%emt 0:00:37]} 21. Rae1 {[%emt 0:01:25]} (21. Nxc6 $2 Nxc6 22. Rhd1 Qd5 $19) 21... Qd5 {[%emt 0:02:28]} 22. Kb1 {[%emt 0:00:29]} Rd8 {[%emt 0:03:41]} 23. Nf3 {[%emt 0:04:54]} ({Better is} 23. Qc2 $11 Qxd4 24. f4) 23... Nd7 {[%emt 0:04:02][%cal Bb8d7,Bd7f6,Bf6g4][%mdl 32]} (23... a5 $5 {[%cal Re7b4]} 24. Qe3 a4 $11) 24. Qe3 {[%emt 0:02:18]} Nf6 {[%emt 0:03:16][%cal Oc6c5]} (24... Nb6 $5 {[%cal Rb6c4]}) 25. Nc3 {[%emt 0:03:42] This move loses the game for White.} (25. Re2 $15) 25... Qf5+ $19 {[%emt 0:01:02]} 26. Ka1 {[%emt 0:00:03]} Ng4 {[%emt 0:01:07] Prevents Ne5.} 27. Qe2 {[%emt 0:00:31]} Bb4 {[%emt 0:00:49] Black is much more active.} 28. Ne5 {[%emt 0:03:01]} Nxe5 {[%emt 0:02:28]} ({Resist} 28... Nxf2 29. Rhf1 Re7 30. Rxf2 $18 (30. Qxf2 Qxf2 31. Rxf2 f6 $14)) 29. dxe5 {[%emt 0:02:14]} Bxc3 {[%emt 0:02:23]} 30. bxc3 {[%emt 0:00:03]} Rd3 {[%emt 0:00:57]} 31. Qc2 {[%emt 0:07:55]} Qf3 {[%emt 0:02:43]} 32. Rd1 {[%emt 0:08:34]} (32. Qe2 $17) 32... Rad7 {[%emt 0:00:29][%cal Rd3d1,Ba7d7,Bd7d3,Bd3c3,Bc3c4][%mdl 32]} (32... Rxc3 $2 33. Rd8#) 33. Rxd3 {[%emt 0:00:07]} Rxd3 {[%emt 0:00:06][%mdl 4096] Endgame KQR-KQR} ({Stronger than} 33... Qxh1+ 34. Kb2 Rxd3 35. Qxd3 $11) 34. Rc1 {[%emt 0:00:12]} a5 {[%emt 0:03:04] Inhibits g4.} 35. c4 {[%emt 0:02:31]} b4 {[%emt 0:00:23]} 36. Re1 {[%emt 0:04:52]} Rc3 {[%emt 0:00:56]} 37. Qd2 {[%emt 0:01:48]} Rxc4 {[%emt 0:01:15]} 38. Re3 {[%emt 0:01:05]} Qd5 {[%emt 0:01:38]} 39. Qxd5 {[%emt 0:01:42]} cxd5 {[%emt 0:00:02][%cal Bc6d5,Bd5d4][%mdl 32] KR-KR} 40. e6 {[%emt 0:03:43]} (40. Kb2 $142) 40... fxe6 {[%emt 0:00:04]} 41. Rxe6 {[%emt 0:00:03]} a4 {[%emt 0:00:40][%cal Ba5a4,Ba4a3][%mdl 32] aiming for ...Kf7.} 42. Rd6 {[%emt 0:01:00]} a3 {[%emt 0:00:45][%cal Rc4c1]} 43. Kb1 {[%emt 0:00:05] Prevents Rc1+.} d4 {[%emt 0:00:05]} 44. Rd7 {[%emt 0:00:27]} Kf8 {[%emt 0:00:34]} 45. f4 {[%emt 0:01:06]} (45. f3 $142 Ke8 46. Rd5) 45... Ke8 {[%emt 0:00:51]} 46. Rd5 {[%emt 0:00:03]} Ke7 {[%emt 0:00:22]} 47. h5 {[%emt 0:01:54]} Ke6 {[%emt 0:00:52] Against g4} 48. Re5+ {[%emt 0:00:08]} Kd6 {[%emt 0:00:22]} 49. Re4 {[%emt 0:00:14] Prevents d3.} Kd5 {[%emt 0:02:31]} 50. Re5+ {[%emt 0:00:03] [#]} Kc6 $1 {[%emt 0:00:10] ( -> ...d3)} 51. Re6+ {[%emt 0:02:31]} Kb5 {[%emt 0:00:34] Threatens to win with ...Rc3.} 52. Rd6 {[%emt 0:00:34]} Kc5 {[%emt 0:00:51]} 53. Rd7 {[%emt 0:00:01]} Rc3 {[%emt 0:00:13]} 54. Rxg7 {[%emt 0:00:31]} Kc4 {[%emt 0:00:04]} 55. f5 {[%emt 0:01:30]} Rf3 {[%emt 0:02:07]} 56. Kc2 {[%emt 0:00:00]} Rf2+ {[%emt 0:00:17]} 57. Kd1 {[%emt 0:00:05]} Rxf5 {[%emt 0:00:45]} (57... Rxa2 $142 58. g4 b3 59. Re7 Kd3 60. Ke1 Rh2 61. Kf1 b2 62. Re1 a2 63. Rd1+ Kc3 64. Kg1 Rc2 65. Kf1 b1=Q 66. Ke1 {[#]} Qxd1+ $3 {[%mdl 512]} 67. Kxd1 a1=Q#) 58. g4 {[%emt 0:00:15]} Rf2 {[%emt 0:00:10] Black mates.} 59. g5 {[%emt 0:00:58]} hxg5 {[%emt 0:00:08]} 60. h6 {[%emt 0:00:03]} Rxa2 {[%emt 0:00:21]} 61. Rc7+ {[%emt 0:00:08]} Kd3 {[%emt 0:00:11]} 62. h7 {[%emt 0:00:05]} Rh2 {[%emt 0:00:15] Weighted Error Value: White=0.54/Black=0.26 (precise)} 0-1

[Event "US Masters 2022"]
[Site "Charlotte"]
[Date "2022.11.24"]
[Round "2.12"]
[White "Jacobson, Brandon"]
[Black "Zapata, Alonso"]
[Result "0-1"]
[ECO "E60"]
[WhiteElo "2551"]
[BlackElo "2336"]
[Annotator "TA"]
[PlyCount "112"]
[EventDate "2022.11.23"]
[EventType "swiss"]
[EventCountry "USA"]
[SourceTitle "playchess.com"]
[Source "ChessBase"]
[SourceQuality "1"]
[TimeControl "5400+30"]

{[%evp 15,112,31,75,66,89,48,54,54,51,50,50,35,42,15,36,15,27,26,24,25,25,30,22,18,41,-75,-45,-50,-50,-145,-134,-149,-148,-202,-160,-125,-137,-153,-140,-122,-64,-68,-82,-181,-116,-158,-170,-336,-315,-395,-382,-356,-293,-260,-161,-161,-161,-143,-131,-131,-131,-120,-106,-107,-112,-110,-112,-151,-100,-85,-100,-147,-86,-535,-512,-479,-476,-442,-442,-821,-802,-1027,-1007,-985,-1027,-1198,-1070,-1071,-1056,-1614,-1570,-1787,-1635,-29958,-29963,-29975,-29976,-29972,-29962]} 1. Nf3 {[%emt 0:02:28]} Nf6 {[%emt 0:00:35]} 2. g3 {[%emt 0:00:49]} g6 {[%emt 0:00:19]} 3. b3 {[%emt 0:00:38]} Bg7 {[%emt 0:00:25]} 4. Bb2 {[%emt 0:00:07]} c5 {[%emt 0:00:52]} 5. Bg2 {[%emt 0:01:53]} O-O {[%emt 0:00:27]} 6. c4 {[%emt 0:00:49]} Nc6 {[%emt 0:00:28]} 7. O-O {[%emt 0:01:12]} d6 {[%emt 0:01:30]} 8. d4 {[%emt 0:00:48][%cal Bd2d4,Bd4d5][%mdl 32]} Bf5 {[%emt 0:07:46]} 9. d5 {[%emt 0:15:17] E60: King's Indian: Unusual lines and Fianchetto Variation without Nc3.} Na5 {[%emt 0:02:44]} 10. Nbd2 {[%emt 0:03:21]} a6 {[%emt 0:01:13]} 11. Re1 {[%emt 0:00:48] White is slightly better.} e5 {[%emt 0:05:52]} 12. e4 {[%emt 0:11:49]} Bd7 {[%emt 0:04:07] [#]} 13. Rf1 $146 {[%emt 0:00:06]} ({Predecessor:} 13. Bc3 b5 14. Qc2 Qc7 15. Rab1 Nb7 16. Re2 Qc8 17. Ne1 Nh5 18. Nd3 f5 19. exf5 gxf5 {1-0 (55) Hakobyan,A (2545)-Jumabayev,R (2602) St Petersburg 2018}) 13... b5 {[%emt 0:01:04]} 14. Ne1 {[%emt 0:02:00]} Rb8 {[%emt 0:08:35]} 15. Nd3 {[%emt 0:00:46]} Nh5 {[%emt 0:02:33]} 16. Bc3 {[%emt 0:16:08]} f5 {[%emt 0:01:02]} 17. exf5 {[%emt 0:01:09]} Bxf5 {[%emt 0:00:51]} 18. Be4 {[%emt 0:00:06]} Bh3 {[%emt 0:03:29]} 19. Re1 {[%emt 0:00:07]} Nf6 {[%emt 0:04:10]} (19... Bh6 {is interesting.} 20. f3 Qg5 21. Nf1 Bxf1 22. Kxf1 Qd8) 20. a3 {[%emt 0:09:22]} (20. Bg2 $14 {keeps the upper hand.} Bf5 21. Qe2) 20... Bg4 {[%emt 0:01:10]} 21. Qc2 {[%emt 0:05:23]} Bh6 {[%emt 0:05:27]} 22. Bxa5 {[%emt 0:03:37]} ({Better is} 22. f4 $15) 22... Qxa5 $17 {[%emt 0:00:18]} 23. b4 {[%emt 0:00:02]} Qa4 $36 {[%emt 0:01:07][%mdl 2048] Black is really pushing.} 24. Qa2 {[%emt 0:09:57]} (24. Qxa4 $17 {might work better.} bxa4 25. Ra2 Bxd2 26. Rxd2 Nxe4 27. Rxe4) 24... cxb4 {[%emt 0:12:18]} 25. Nxb4 {[%emt 0:00:21]} Bxd2 {[%emt 0:11:15] Black is more active.} 26. Qxd2 {[%emt 0:00:04]} Nxe4 {[%emt 0:06:29]} 27. Rxe4 {[%emt 0:00:04]} Bf3 {[%emt 0:00:09]} (27... Bf5 $17 28. Rh4 bxc4) 28. Re3 $15 {[%emt 0:09:55]} bxc4 {[%emt 0:01:09]} 29. Rc1 {[%emt 0:02:49]} (29. Qc3 $17) 29... Rb5 {[%emt 0:11:57]} (29... Qd7 $1 $19 {[%cal Rd7h3]} 30. Rcc3 Qg4) 30. Rec3 {[%emt 0:00:45]} Rc5 {[%emt 0:01:10] Hoping for ...a5.} 31. Qg5 $2 {[%emt 0:01:14]} (31. Qh6 {was necessary.}) 31... Qd7 $1 $19 {[%emt 0:00:49]} (31... Bxd5 32. Qe7 Bf7 33. Qxd6 $15) 32. Qh4 {[%emt 0:01:49]} a5 {[%emt 0:02:40]} (32... Bxd5 33. Nxd5 Rxd5 34. Qxc4 $15) 33. Nc6 {[%emt 0:00:02]} Kg7 {[%emt 0:01:46]} (33... Rxd5 34. Rxf3 $1 (34. Rxc4 $2 Kg7 $19) 34... Qxc6 35. Rxf8+ (35. Rxc4 Rd1+ 36. Kg2 Qxf3+ 37. Kh3 Qxf2 38. Qe4 Rd2 39. Qh1 Qf5+ 40. Rg4 d5 41. Qe1 h5) 35... Kxf8 36. Qxh7 $11 (36. Qxc4 $2 Rc5 $19)) 34. Rxc4 {[%emt 0:00:50]} Rxc4 {[%emt 0:00:36] The board is on fire.} ({Worse is} 34... Bxd5 35. Rxc5 dxc5 36. Nxe5 $11) 35. Qxc4 {[%emt 0:00:03]} Qh3 {[%emt 0:00:15][%csl Gf3][%cal Rh3g2]} 36. Qf1 {[%emt 0:00:01] Prevents Qg2+.} Qxf1+ {[%emt 0:00:14]} 37. Kxf1 {[%emt 0:00:03]} Bxd5 {[%emt 0:00:10] ...Rc8 is the strong threat.} 38. Nxa5 $17 {[%emt 0:00:41][%mdl 4096] Endgame KRB-KRN} Ra8 {[%emt 0:00:11]} 39. Nb7 {[%emt 0:00:41]} Ra6 $1 {[%emt 0:01:38]} ({Reject} 39... Rxa3 $6 40. Nxd6 Kf6 41. Nc4 $11) 40. Rc7+ {[%emt 0:01:41]} Kf6 {[%emt 0:00:05]} 41. Rd7 {[%emt 0:00:37]} Ke6 {[%emt 0:01:07]} (41... Rxa3 $2 42. Rxd6+ Kf5 43. Rxd5 $18) ({Black should try} 41... Bc6 $1 {[%cal Rc6d7]} 42. Rc7 (42. Rxd6+ $2 {too greedy.} Kf5 $19) 42... Bb5+ 43. Ke1 h5) 42. Rxh7 {[%emt 0:00:16]} Rxa3 {[%emt 0:00:52] ( -> ...Bf3)} 43. Nd8+ {[%emt 0:00:42]} (43. Ke1 $142) 43... Kf6 {[%emt 0:00:05]} ({Black should play} 43... Kf5 {White must now prevent ...Bf3.} 44. Ke2 Ra2+ 45. Ke3 Ra3+ 46. Ke2 Ra2+ 47. Ke3 g5) 44. Rd7 $2 {[%emt 0:00:04][%mdl 8192] [#] This costs White the game.} (44. Ke2 $17 {is more resistant.}) 44... Bf3 $1 $19 {[%emt 0:00:16][%cal Ra3a1]} 45. Rf7+ {[%emt 0:01:03]} Kg5 {[%emt 0:00:11][%cal Ra3a1]} 46. Ke1 {[%emt 0:00:17] [#]} Rd3 $1 {[%emt 0:00:14][%csl Gf3][%cal Rd3d1]} 47. Rxf3 {[%emt 0:00:30]} (47. Ne6+ $142 Kh5 48. Rxf3 Rxf3 49. h3) 47... Rxf3 {[%emt 0:00:02] KR-KN} 48. Ke2 {[%emt 0:00:22]} e4 {[%emt 0:01:01]} 49. Ne6+ {[%emt 0:00:33]} Kf6 {[%emt 0:00:22]} 50. Nd4 {[%emt 0:00:17]} Rd3 {[%emt 0:00:17]} 51. Nc2 {[%emt 0:00:05]} d5 {[%emt 0:00:54][%cal Bd6d5,Bd5d4][%mdl 32]} 52. Nb4 {[%emt 0:01:09]} Rd4 {[%emt 0:00:11]} 53. Nc2 {[%emt 0:00:06]} Ra4 {[%emt 0:00:15] Strongly threatening ...d4.} 54. Ke3 {[%emt 0:00:16]} Ke5 {[%emt 0:01:01] Black mates.} 55. f4+ {[%emt 0:00:08]} exf3 {[%emt 0:00:06]} 56. Kxf3 {[%emt 0:00:03]} d4 {[%emt 0:00:15] Weighted Error Value: White=0.81/Black=0.15 (very precise)} 0-1

[Event "US Masters 2022"]
[Site "Charlotte"]
[Date "2022.11.24"]
[Round "2.13"]
[White "Marek, Matyas"]
[Black "Mishra, Abhimanyu"]
[Result "1/2-1/2"]
[ECO "B51"]
[WhiteElo "2346"]
[BlackElo "2549"]
[Annotator "TA"]
[PlyCount "53"]
[EventDate "2022.11.23"]
[EventType "swiss"]
[EventCountry "USA"]
[SourceTitle "playchess.com"]
[Source "ChessBase"]
[SourceQuality "1"]
[TimeControl "5400+30"]

{[%evp 9,53,16,38,33,37,26,32,31,41,41,41,32,39,19,42,0,0,0,0,0,0,-30,-23,-30,-31,-12,8,10,9,8,10,7,10,2,4,9,10,7,6,8,7,12,6,0,0,0]} 1. e4 {[%emt 0:00:05]} c5 {[%emt 0:00:05]} 2. Nf3 {[%emt 0:00:04]} d6 {[%emt 0:00:10]} 3. Bb5+ {[%emt 0:00:04]} Nd7 {[%emt 0:00:18]} 4. a4 {[%emt 0:00:12][%cal Ba2a4,Ba4a5][%mdl 32]} Ngf6 {[%emt 0:00:59]} 5. Nc3 {[%emt 0:00:07]} g6 {[%emt 0:00:41]} 6. O-O {[%emt 0:00:49] B51: Sicilian: Moscow Variation (3 Bb5+) without 3...Bd7.} Bg7 {[%emt 0:03:01]} 7. a5 {[%emt 0:00:36]} a6 {[%emt 0:00:45]} 8. Be2 {[%emt 0:00:08] White is slightly better.} O-O {[%emt 0:00:37]} 9. d3 {[%emt 0:00:07]} b5 {[%emt 0:02:59]} 10. axb6 {[%emt 0:00:48]} a5 {[%emt 0:03:59]} 11. Bd2 {[%emt 0:11:08]} Nxb6 {[%emt 0:06:13] [#]} 12. e5 $146 {[%emt 0:10:19]} ({Predecessor:} 12. Na4 Bd7 13. Nxb6 Qxb6 14. Bc3 a4 15. Nd2 Rfb8 16. Ra3 Ne8 17. Nc4 Qd8 18. Bxg7 Nxg7 {0-1 (45) Kamsky,G (2658)-Bok,B (2624) Chess.com INT 2022}) 12... Nfd5 {[%emt 0:06:48]} 13. Ne4 {[%emt 0:04:43]} a4 {[%emt 0:03:46]} 14. c4 {[%emt 0:03:02]} Nc7 {[%emt 0:05:10]} 15. d4 {[%emt 0:09:34]} cxd4 {[%emt 0:18:26]} 16. exd6 {[%emt 0:00:50]} exd6 {[%emt 0:00:05]} 17. Bb4 {[%emt 0:00:59][%csl LRd4,LRd6]} Be6 {[%emt 0:09:12] The position is equal.} 18. Nxd6 {[%emt 0:10:37]} d3 {[%emt 0:03:20]} 19. Qxd3 {[%emt 0:02:39] Hoping for Qe3.} Bxb2 {[%emt 0:00:29]} 20. Ra2 {[%emt 0:00:48]} (20. Rab1 {keeps more tension.} a3 21. Qb3 Nd7 22. Rxb2 axb2 23. Qxb2 Na6 24. Bd2) 20... a3 {[%emt 0:04:38][%cal Oc7d5]} 21. Bxa3 {[%emt 0:08:50]} (21. Rd1 {feels hotter.} Nxc4 22. Nxc4 Qxd3 23. Bxd3 Rfd8 24. Rxb2 Bxc4 25. Rc2) 21... Nxc4 {[%emt 0:05:30][%mdl 64] [#] Decoy} 22. Nxc4 {[%emt 0:01:33]} Qxd3 {[%emt 0:00:47]} 23. Bxd3 {[%emt 0:09:22]} Rxa3 {[%emt 0:01:26][%mdl 64]} 24. Rxa3 {[%emt 0:00:16]} Bxc4 {[%emt 0:00:02] [#]} 25. Bxc4 $1 {[%emt 0:06:44]} Bxa3 {[%emt 0:00:02]} 26. Rd1 {[%emt 0:01:36]} Ne8 {[%emt 0:02:18]} 27. Rd8 {[%emt 0:01:13] Weighted Error Value: White=0.06 (flawless) /Black=0.05 (flawless)} 1/2-1/2